bitfinex-derivatives/quotes_SOLF0:USTF0_20241218
["timestamp","ask_amount","ask_price","bid_price","bid_amount"]
[1734482226270,27.71110618,222.46,222.32,3.48]
[1734482226659,27.71110618,222.46,222.33,1.5806]
[1734482226865,27.71110618,222.46,222.38,2.2477]
[1734482227067,27.71110618,222.5,222.39,3.48]
[1734482227267,27.71110618,222.5,222.4,5.7275]
[1734482227570,27.71110618,222.5,222.41,3.48]
[1734482228966,27.71110618,222.46,222.41,3.48]
[1734482229674,27.71110618,222.42,222.36,2.2479]
[1734482229869,27.71110618,222.42,222.33,1.5806]
[1734482229870,27.71110618,222.42,222.35,3.48]
[1734482231164,5.262648,222.51,222.35,3.48]
[1734482231165,27.71110618,222.46,222.35,3.48]
[1734482232368,29.95810618,222.46,222.36,2.2479]
[1734482232573,27.71110618,222.46,222.35,3.48]
[1734482232765,5.262648,222.51,222.35,3.48]
[1734482232766,27.71110618,222.5,222.35,3.48]
[1734482233568,27.71110618,222.5,222.41,2.2474]
[1734482233969,27.71110618,222.5,222.35,3.48]
[1734482234167,2.2468,222.48,222.39,2.2477]
[1734482235770,2.2471,222.45,222.37,3.48]
[1734482236075,27.71110618,222.42,222.34,3.48]
[1734482236377,5.262648,222.51,222.34,3.48]
[1734482236378,27.71110618,222.46,222.34,3.48]
[1734482237476,27.71110618,222.46,222.39,2.2476]
[1734482237876,2.2472,222.44,222.33,1.5806]
[1734482238071,2.2472,222.44,222.36,3.48]
[1734482238274,27.71110618,222.42,222.31,5.44006486]
[1734482238481,2.248,222.36,222.3,1.4481]
[1734482238673,2.248,222.36,222.27,5.7288]
[1734482238871,27.71110618,222.34,222.27,5.7288]
[1734482239177,27.71110618,222.34,222.26,2.249]
[1734482239376,27.71110618,222.34,222.24,10.45393283]
[1734482239377,27.71110618,222.3,222.24,5.50873283]
[1734482239678,29.95970618,222.3,222.19,52.9119]
[1734482239979,29.95970618,222.3,222.21,3.48]
[1734482240180,27.71110618,222.3,222.21,3.48]
[1734482240380,2.2489,222.27,222.21,3.48]
[1734482240672,27.71110618,222.3,222.21,3.48]
[1734482240873,27.71110618,222.3,222.24,2.2491]
[1734482241378,27.71110618,222.42,222.21,3.48]
[1734482241379,27.71110618,222.34,222.21,3.48]
[1734482241573,27.71110618,222.38,222.22,1.5772]
[1734482242170,27.71110618,222.38,222.32,2.2484]
[1734482242371,27.71110618,222.38,222.29,3.48]
[1734482242578,2.2479,222.37,222.29,5.7286]
[1734482242880,27.71110618,222.38,222.26,3.48]
[1734482243481,2.2481,222.36,222.3,2.2486]
[1734482243782,27.71110618,222.38,222.26,3.48]
[1734482243986,27.71110618,222.38,222.28,2.2487]
[1734482243987,2.2481,222.35,222.28,2.2487]
[1734482244178,27.71110618,222.38,222.26,3.48]
[1734482245594,27.71110618,222.34,222.22,7.3065]
[1734482245787,27.71110618,222.34,222.22,3.48]
[1734482245988,2.2486,222.3,222.24,2.2492]
[1734482246289,27.71110618,222.38,222.22,3.48]
[1734482247284,2.2478,222.39,222.28,2.2487]
[1734482247490,2.2478,222.39,222.29,3.48]
[1734482248589,2.2478,222.39,222.33,2.2483]
[1734482249383,33.23230244,222.42,222.33,2.2483]
[1734482249384,2.2478,222.38,222.33,2.2483]
[1734482249789,2.2478,222.38,222.31,2.2484]
[1734482249990,2.2478,222.38,222.29,3.48]
[1734482250595,2.2477,222.4,222.29,3.48]
[1734482250789,27.71110618,222.42,222.2,5.3391669]
[1734482250790,27.71110618,222.38,222.2,33.05027308]
[1734482250989,2.2484,222.32,222.24,6.1695]
[1734482251593,27.71110618,222.38,222.24,6.1695]
[1734482253494,2.2486,222.3,222.24,3.28]
[1734482253791,27.71110618,222.34,222.24,3.28]
[1734482253990,2.2485,222.31,222.24,3.28]
[1734482254195,27.71110618,222.38,222.24,3.28]
[1734482254497,2.2481,222.35,222.28,2.2488]
[1734482254795,2.2481,222.35,222.24,3.28]
[1734482255294,2.2482,222.34,222.24,3.28]
[1734482255499,27.71110618,222.38,222.2,33.05027308]
[1734482255695,27.71110618,222.38,222.23,3.84264]
[1734482255895,2.2486,222.3,222.23,3.84264]
[1734482256191,27.71110618,222.38,222.23,3.84264]
[1734482256391,27.71110618,222.34,222.01,4.503]
[1734482256598,44.46110618,222.42,222.02,0.82695858]
[1734482256599,27.71110618,222.2,222.02,0.82695858]
[1734482256796,27.71110618,222.31,222.05,27.71110618]
[1734482256797,27.71110618,222.24,222.05,27.71110618]
[1734482256995,27.71110618,222.24,222.1,5.45988538]
[1734482257496,2.2498,222.19,222.13,2.2502]
[1734482257898,27.71110618,222.24,222.11,3.28]
[1734482258195,27.71110618,222.28,222.11,3.28]
[1734482258394,27.71110618,222.28,222.12,1.4754]
[1734482258791,27.71110618,222.28,222.16,2.25]
[1734482258993,27.71110618,222.28,222.16,3.28]
[1734482259498,2.249,222.27,222.19,2.2497]
[1734482259690,27.71110618,222.28,222.16,3.28]
[1734482261395,2.2489,222.27,222.2,2.2496]
[1734482262690,27.71110618,222.28,222.2,2.2496]
[1734482262891,27.71110618,222.28,222.19,3.28]
[1734482263097,27.71110618,222.28,222.18,2.2497]
[1734482263296,2.2494,222.22,222.14,0.63311]
[1734482263491,27.71110618,222.28,222.14,0.63311]
[1734482263691,27.71110618,222.24,222.14,0.63311]
[1734482263901,2.2495,222.22,222.14,0.63311]
[1734482264202,2.2495,222.22,222.16,2.25]
[1734482264392,2.2495,222.22,222.14,3.91311]
[1734482264698,2.2495,222.21,222.15,2.25]
[1734482264994,27.71110618,222.24,222.15,2.25]
[1734482265294,27.71110618,222.2,222.14,0.63311]
[1734482265494,27.71110618,222.24,222.14,0.63311]
[1734482265900,2.2496,222.2,222.14,0.63311]
[1734482266200,27.71110618,222.24,222.14,0.63311]
[1734482266499,2.2495,222.21,222.16,2.25]
[1734482266697,27.71110618,222.24,222.16,2.25]
[1734482266894,27.71110618,222.28,222.14,0.63311]
[1734482267094,3.28,222.27,222.14,0.63311]
[1734482267294,2.2493,222.24,222.19,2.2497]
[1734482267891,2.2491,222.26,222.21,2.2495]
[1734482268406,22.49791804,222.29,222.21,2.2495]
[1734482268899,22.49791804,222.29,222.19,5.5296]
[1734482268900,2.2492,222.25,222.19,5.5296]
[1734482269099,2.2492,222.25,222.19,3.28]
[1734482269501,22.49791804,222.29,222.2,2.2496]
[1734482270202,22.49791804,222.29,222.19,3.28]
[1734482270703,17.11636553,222.25,222.15,3.28]
[1734482270904,2.2493,222.23,222.18,2.2497]
[1734482271303,17.11636553,222.25,222.15,3.28]
[1734482271499,2.2496,222.21,222.15,3.28]
[1734482271807,17.11636553,222.25,222.15,3.28]
[1734482271997,2.2496,222.2,222.16,2.25]
[1734482272602,2.2496,222.2,222.15,3.28]
[1734482272603,2.2497,222.19,222.15,5.5301]
[1734482273303,2.2498,222.18,222.15,5.5301]
[1734482273702,17.11636553,222.21,222.14,0.63311]
[1734482274505,17.11636553,222.17,222.04,3.28]
[1734482274809,17.11636553,222.17,222.08,2.2508]
[1734482275109,2.2501,222.16,222.04,3.28]
[1734482275311,17.11636553,222.17,222.06,5.30422911]
[1734482275512,17.11636553,222.21,222.06,5.30422911]
[1734482275709,2.2499,222.18,222.06,5.30422911]
[1734482275913,17.11636553,222.21,222.06,5.30422911]
[1734482276205,17.11636553,222.21,222.04,3.28]
[1734482276605,17.11636553,222.21,222.04,20.39636553]
[1734482276911,2.2498,222.18,222.04,20.39636553]
[1734482277307,2.2497,222.19,222.05,5.46637184]
[1734482278114,17.11636553,222.21,222.05,5.46637184]
[1734482278412,17.11636553,222.21,222.09,2.2506]
[1734482278613,17.11636553,222.21,222.09,3.28]
[1734482278805,2.2501,222.15,222.09,3.28]
[1734482279005,2.2501,222.15,222.11,2.2505]
[1734482280111,2.2503,222.14,222.1,2.2506]
[1734482280307,2.2503,222.14,222.08,3.28]
[1734482280308,17.11636553,222.21,222.08,3.28]
[1734482280504,17.11636553,222.25,222.08,3.28]
[1734482280708,2.2498,222.19,222.13,2.2503]
[1734482280911,2.2498,222.19,222.08,3.28]
[1734482281314,2.2498,222.19,222.14,2.2501]
[1734482281515,2.2498,222.19,222.08,3.28]
[1734482281814,17.11636553,222.25,222.08,20.39636553]
[1734482282218,17.11636553,222.29,222.08,20.39636553]
[1734482282717,17.11636553,222.29,222.12,17.11636553]
[1734482282924,17.11636553,222.29,222.13,4.5165]
[1734482283214,17.11636553,222.38,222.16,17.11636553]
[1734482283408,17.11636553,222.38,222.2,17.11636553]
[1734482283614,2.2481,222.35,222.26,2.249]
[1734482283815,2.2481,222.35,222.27,3.12]
[1734482284121,2.2481,222.35,222.28,3.12]
[1734482284314,2.2483,222.33,222.28,5.3688]
[1734482284513,22.45050032,222.38,222.28,5.3688]
[1734482284917,22.45050032,222.38,222.3,2.2486]
[1734482285317,2.2482,222.34,222.28,3.12]
[1734482285519,22.45050032,222.38,222.28,3.12]
[1734482286422,2.2481,222.35,222.29,2.2487]
[1734482287022,2.2481,222.35,222.3,2.2486]
[1734482287225,2.2481,222.35,222.28,3.12]
[1734482287425,17.11636553,222.38,222.28,3.12]
[1734482287919,2.2485,222.31,222.28,3.12]
[1734482288114,17.11636553,222.34,222.21,3.12]
[1734482288315,17.11636553,222.34,222.16,17.11636553]
[1734482288316,17.11636553,222.34,222.22,5.38339462]
[1734482289022,2.2486,222.3,222.25,2.2491]
[1734482289723,2.2487,222.29,222.25,2.2491]
[1734482290320,2.249,222.26,222.13,4.5165]
[1734482290523,17.11636553,222.3,222.14,3.12]
[1734482291019,2.249,222.26,222.21,2.2494]
[1734482291223,2.249,222.26,222.14,3.12]
[1734482291224,17.43114293,222.29,222.14,3.12]
[1734482291428,10.41035671,222.29,222.14,3.12]
[1734482291620,10.41035671,222.29,222.13,4.5165]
[1734482291925,10.41035671,222.29,222.14,3.12]
[1734482292124,13.53035671,222.29,222.13,4.5165]
[1734482292321,17.11636553,222.26,222.13,3.0071]
[1734482292523,17.43435364,222.25,222.09,3.12]
[1734482292725,17.43435364,222.25,222.13,2.2503]
[1734482292726,2.2497,222.2,222.13,2.2503]
[1734482292932,7.02399693,222.24,222.12,5.38160614]
[1734482293131,13.99752658,222.24,222.12,8.50160614]
[1734482293328,10.41035671,222.23,222.12,8.50160614]
[1734482293627,7.02399693,222.22,222.12,8.50160614]
[1734482294027,14.00085864,222.24,222.14,2.2501]
[1734482294224,10.41035671,222.23,222.14,2.2501]
[1734482294428,7.02399693,222.22,222.14,2.2501]
[1734482294723,2.2498,222.19,222.14,2.2501]
[1734482295126,10.41035671,222.23,222.12,8.50160614]
[1734482295333,2.2499,222.18,222.13,2.2503]
[1734482295532,7.02843524,222.22,222.12,3.12]
[1734482295734,14.00686496,222.22,222.12,3.12]
[1734482295928,10.41035671,222.21,222.12,3.12]
[1734482296333,3.12,222.24,222.12,3.12]
[1734482296633,2.25,222.17,222.13,2.2503]
[1734482297026,2.2497,222.2,222.16,2.25]
[1734482297222,17.44130476,222.22,222.12,3.12]
[1734482297534,3.12,222.27,222.12,3.12]
[1734482297831,2.2495,222.22,222.12,3.12]
[1734482298030,3.12,222.27,222.12,3.12]
[1734482298228,3.12,222.27,222.15,2.2501]
[1734482298229,2.2497,222.19,222.15,2.2501]
[1734482298430,17.39682463,222.26,222.11,5.36138865]
[1734482298634,6.97650892,222.25,222.11,5.36138865]
[1734482298934,10.42031571,222.26,222.1,3.12]
[1734482298935,5.4141562,222.26,222.1,3.12]
[1734482299126,5.4141562,222.26,222.1,8.41961662]
[1734482299930,17.45952092,222.28,222.1,8.41961662]
[1734482300125,3.12,222.31,222.1,8.41961662]
[1734482300425,17.46865553,222.29,222.1,8.41961662]
[1734482300631,17.46865553,222.29,222.14,2.2502]
[1734482300632,2.2498,222.18,222.14,2.2502]
[1734482300937,17.11636553,222.25,222.1,8.41961662]
[1734482301124,17.11636553,222.21,222.07,2.9821]
[1734482301324,3.12,222.2,222.07,2.9821]
[1734482301832,3.12,222.2,222.08,3.12]
[1734482302134,17.11636553,222.21,222.08,3.12]
[1734482303135,2.2498,222.18,222.08,4.5642]
[1734482303436,20.23636553,222.25,222.08,4.5642]
[1734482303629,2.2496,222.2,222.15,2.2501]
[1734482304229,8.49981828,222.28,222.15,2.2501]
[1734482304430,17.11636553,222.26,222.14,3.12]
[1734482304633,17.46685059,222.25,222.14,3.12]
[1734482304827,7.03528758,222.25,222.14,3.12]
[1734482305133,2.2496,222.2,222.16,2.25]
[1734482305831,199.1840136,222.39,222.14,3.12]
[1734482305832,17.11636553,222.31,222.14,3.12]
[1734482306026,5.49652646,222.3,222.14,3.12]
[1734482306333,2.2491,222.25,222.2,2.2496]
[1734482306726,2.2491,222.25,222.2,3.12]
[1734482306926,2.2491,222.25,222.21,2.2494]
[1734482307427,5.49652646,222.3,222.11,17.11636553]
[1734482307428,17.11636553,222.31,222.11,3.12]
[1734482307633,17.11636553,222.27,222.11,3.12]
[1734482307830,17.11636553,222.27,222.12,2.9959]
[1734482308036,17.11636553,222.27,222.15,2.2501]
[1734482308437,2.2497,222.19,222.15,2.2501]
[1734482308846,17.11636553,222.27,222.12,2.9959]
[1734482309539,2.2498,222.19,222.15,2.25]
[1734482310542,2.2496,222.21,222.16,2.25]
[1734482310841,17.11636553,222.27,222.17,2.92]
[1734482311032,17.11636553,222.31,222.18,2.92]
[1734482311345,17.11636553,222.31,222.12,2.9959]
[1734482311346,17.46313691,222.3,222.19,2.92]
[1734482311636,17.11636553,222.31,222.2,2.92]
[1734482311844,2.249,222.26,222.2,2.92]
[1734482312741,2.2491,222.25,222.22,2.2494]
[1734482312942,17.11636553,222.31,222.2,2.92]
[1734482313141,2.2489,222.27,222.21,2.2494]
[1734482313343,10.42926449,222.3,222.2,2.92]
[1734482313842,17.11636553,222.31,222.2,2.92]
[1734482314043,2.2491,222.26,222.22,2.2494]
[1734482315446,2.2487,222.29,222.25,2.249]
[1734482315638,17.11636553,222.35,222.2,2.92]
[1734482315846,7.03508094,222.34,222.2,2.92]
[1734482316045,2.2486,222.3,222.21,1.4818]
[1734482316340,2.2486,222.3,222.22,2.9239]
[1734482317447,21.61136553,222.42,222.22,2.9239]
[1734482317448,5.45109756,222.36,222.22,2.9239]
[1734482317643,17.11636553,222.4,222.22,2.9239]
[1734482317846,24.45042291,222.39,222.27,2.2489]
[1734482318144,2.2482,222.34,222.28,2.92]
[1734482318340,17.46729326,222.37,222.29,2.92]
[1734482318541,17.11636553,222.4,222.3,2.2486]
[1734482318743,24.45030629,222.39,222.3,2.2486]
[1734482318945,17.11636553,222.4,222.22,2.9239]
[1734482318946,22.96328089,222.38,222.22,2.9239]
[1734482319251,17.11636553,222.32,222.22,2.9239]
[1734482319551,17.11636553,222.32,222.21,2.2495]
[1734482319747,17.11636553,222.32,222.2,2.92]
[1734482321341,2.2488,222.28,222.24,2.2491]
[1734482321745,2.2492,222.24,222.21,2.2494]
[1734482322348,2.2494,222.23,222.14,4.4176]
[1734482322645,17.11636553,222.28,222.15,2.92]
[1734482323245,17.11636553,222.28,222.14,2.9515]
[1734482323448,17.11636553,222.28,222.14,5.8715]
[1734482323647,17.11636553,222.28,222.15,2.2501]
[1734482323853,17.11636553,222.28,222.14,5.8715]
[1734482324347,7.03745596,222.27,222.14,5.8715]
[1734482324653,17.47229806,222.27,222.14,5.8715]
[1734482324948,2.2494,222.22,222.18,2.2497]
[1734482325150,17.11636553,222.28,222.14,5.8715]
[1734482325448,2.2495,222.22,222.14,5.8715]
[1734482325850,10.4373644,222.27,222.14,5.8715]
[1734482326051,2.2493,222.24,222.14,5.8715]
[1734482326747,2.2493,222.24,222.19,2.2497]
[1734482328053,17.11636553,222.28,222.19,2.2497]
[1734482328348,10.4398937,222.27,222.14,5.8715]
[1734482328546,24.47065685,222.27,222.14,5.8715]
[1734482328745,2.2496,222.2,222.16,2.25]
[1734482328948,17.11636553,222.28,222.14,5.8715]
[1734482329146,24.47297491,222.27,222.14,5.8715]
[1734482329352,17.48277982,222.26,222.18,2.2497]
[1734482329557,17.48277982,222.25,222.18,2.2497]
[1734482329753,17.11636553,222.28,222.18,2.2497]
[1734482329951,17.11636553,222.28,222.14,5.8715]
[1734482329952,2.2494,222.22,222.14,5.8715]
[1734482330154,17.48782935,222.27,222.14,5.8715]
[1734482330353,17.48782935,222.26,222.14,5.8715]
[1734482330555,17.11636553,222.28,222.14,5.8715]
[1734482330756,17.49357762,222.27,222.14,5.8715]
[1734482330958,7.04600267,222.26,222.14,5.8715]
[1734482332560,14.04444715,222.26,222.13,5.33905713]
[1734482332757,10.44757495,222.25,222.13,8.25905713]
[1734482332956,2.2496,222.21,222.13,8.25905713]
[1734482333159,7.04600267,222.24,222.13,8.25905713]
[1734482333358,10.44757495,222.27,222.16,2.2499]
[1734482333359,2.2495,222.22,222.16,2.2499]
[1734482333557,2.2495,222.22,222.13,8.25905713]
[1734482333865,2.2495,222.22,222.18,2.2498]
[1734482335661,2.2493,222.23,222.13,8.25905713]
[1734482335867,2.92,222.31,222.13,8.25905713]
[1734482336057,24.53495325,222.31,222.13,8.25905713]
[1734482336255,20.03636553,222.32,222.13,8.25905713]
[1734482336256,2.2493,222.24,222.21,2.2494]
[1734482336455,17.11636553,222.32,222.19,2.92]
[1734482336767,2.249,222.27,222.23,2.2493]
[1734482336956,7.06077401,222.3,222.19,2.92]
[1734482337259,10.46961177,222.31,222.19,2.92]
[1734482337466,2.2489,222.27,222.24,2.2492]
[1734482337655,2.2489,222.27,222.19,2.92]
[1734482337964,2.2492,222.24,222.19,2.92]
[1734482338164,17.53013015,222.31,222.19,2.92]
[1734482338367,7.06065778,222.3,222.19,2.92]
[1734482338570,2.2495,222.22,222.19,5.1697]
[1734482338862,14.06894134,222.3,222.19,2.92]
[1734482339061,10.46947237,222.29,222.19,2.92]
[1734482339259,7.06065778,222.28,222.19,2.92]
[1734482339565,14.07073401,222.28,222.19,2.92]
[1734482339761,24.54071833,222.27,222.1,1.4749]
[1734482340063,17.53013015,222.26,222.12,2.92]
[1734482340260,2.2497,222.2,222.13,2.92]
[1734482340459,17.11636553,222.28,222.13,2.92]
[1734482340656,24.5438836,222.27,222.13,2.92]
[1734482340859,17.11636553,222.24,222.1,1.4749]
[1734482341066,27.28016095,222.23,222.08,2.74]
[1734482341267,17.53052731,222.22,222.08,2.74]
[1734482341463,10.46933155,222.22,222.08,2.74]
[1734482341864,7.06182563,222.21,222.1,2.2506]
[1734482342065,10.70529893,222.2,222.1,2.2506]
[1734482342464,10.70529893,222.2,222.08,2.74]
[1734482343067,10.70529893,222.23,222.09,10.70529893]
[1734482343269,2.74,222.25,222.1,1.5125]
[1734482343468,2.2498,222.19,222.14,2.2501]
[1734482343670,2.2498,222.19,222.1,1.5125]
[1734482344265,16.15447914,222.23,222.1,1.5125]
[1734482344266,2.2498,222.18,222.1,1.5125]
[1734482344469,17.53472316,222.22,222.1,1.5125]
[1734482344680,10.70529893,222.2,222.06,18.96001979]
[1734482344974,2.2504,222.13,222.08,2.2507]
[1734482345472,2.2505,222.11,222.08,2.2507]
[1734482345667,10.70529893,222.11,221.9,4.5052]
[1734482345870,10.70529893,222.08,221.94,7.3323]
[1734482346267,10.70529893,222.08,221.97,2.2519]
[1734482346467,10.70529893,222.08,221.94,7.3323]
[1734482346663,2.2514,222.03,221.94,7.3323]
[1734482346863,2.2514,222.03,221.98,2.2518]
[1734482347067,10.70529893,222.08,221.94,7.3323]
[1734482347270,10.70529893,222.08,221.95,2.74]
[1734482347469,10.70529893,222.08,221.98,2.2518]
[1734482347670,2.2511,222.05,221.98,2.2518]
[1734482347870,10.70529893,222.08,221.98,2.2518]
[1734482348073,17.1480731,222.09,221.98,2.2518]
[1734482348774,5.47729451,222.11,221.96,2.74]
[1734482348966,2.2509,222.08,221.96,2.74]
[1734482349274,5.47729451,222.11,222.04,2.2512]
[1734482349473,5.47729451,222.11,221.96,2.74]
[1734482350265,2.2509,222.07,221.96,2.74]
[1734482350570,5.47729451,222.11,221.96,2.74]
[1734482351073,5.47729451,222.11,222.02,2.2514]
[1734482351274,5.47729451,222.11,221.96,2.74]
[1734482351571,2.251,222.07,222.02,2.2514]
[1734482353078,2.251,222.07,221.98,2.74]
[1734482353276,2.251,222.07,222.03,2.2513]
[1734482353479,2.2508,222.08,222.03,2.2513]
[1734482353779,5.47729451,222.11,221.98,2.74]
[1734482353977,2.251,222.07,221.98,2.74]
[1734482354178,5.47729451,222.11,221.99,2.2516]
[1734482354472,17.1480731,222.1,221.95,5.50973653]
[1734482355275,2.2512,222.05,222.0,2.2516]
[1734482355478,19.8880731,222.1,221.95,5.50973653]
[1734482355779,5.47729451,222.11,221.97,17.1480731]
[1734482356379,2.2506,222.11,222.06,2.2509]
[1734482356582,17.1480731,222.14,222.03,2.74]
[1734482357279,2.2505,222.12,222.07,2.2509]
[1734482357477,17.1480731,222.14,222.03,2.74]
[1734482358675,2.2504,222.13,222.08,2.2508]
[1734482359083,2.2502,222.15,222.03,2.74]
[1734482359378,17.1480731,222.18,222.04,2.9421]
[1734482359682,3.07825,222.2,222.06,17.1480731]
[1734482359683,0.33825,222.2,222.06,17.1480731]
[1734482359874,0.33825,222.2,222.07,1.4602]
[1734482360270,0.33825,222.2,222.17,2.2499]
[1734482360474,0.33825,222.2,222.16,2.74]
[1734482360671,2.58785,222.2,222.16,2.74]
[1734482362086,0.33825,222.2,222.16,2.74]
[1734482363384,0.33825,222.2,222.11,2.74]
[1734482364077,0.33825,222.2,222.15,2.2501]
[1734482365386,0.33825,222.2,222.11,2.74]
[1734482366789,2.58795,222.2,222.15,2.25]
[1734482367486,0.33825,222.2,222.13,17.1480731]
[1734482367678,24.46502127,222.3,222.14,3.0117]
[1734482367883,24.46502127,222.29,222.24,2.2491]
[1734482368082,26.71382127,222.28,222.24,2.2491]
[1734482368285,24.46502127,222.27,222.24,2.2491]
[1734482368488,24.46502127,222.27,222.23,2.74]
[1734482368489,17.47722173,222.26,222.23,2.74]
[1734482368686,10.69334834,222.32,222.23,2.74]
[1734482368886,10.69334834,222.32,222.14,3.0117]
[1734482368887,10.69334834,222.26,222.15,2.74]
[1734482369190,2.2494,222.22,222.18,2.2498]
[1734482369384,17.478089,222.24,222.15,2.74]
[1734482369581,17.478089,222.23,222.15,2.74]
[1734482369781,2.2494,222.23,222.18,2.2497]
[1734482370088,2.2494,222.23,222.15,2.74]
[1734482370284,17.47588115,222.23,222.15,2.74]
[1734482370485,17.47588115,222.22,222.15,2.74]
[1734482370686,10.69334834,222.26,222.15,2.74]
[1734482370888,24.46064787,222.25,222.15,2.74]
[1734482371082,17.47398897,222.24,222.15,2.74]
[1734482371284,10.69334834,222.29,222.15,2.74]
[1734482371484,24.46617571,222.28,222.15,2.74]
[1734482371687,7.03974985,222.27,222.17,10.69334834]
[1734482371992,24.46617571,222.27,222.17,10.69334834]
[1734482372188,17.47817129,222.26,222.23,2.2492]
[1734482372389,7.03974985,222.25,222.23,2.72]
[1734482372691,10.69334834,222.32,222.23,2.72]
[1734482372692,14.02774267,222.31,222.23,2.72]
[1734482372889,10.43859646,222.3,222.23,2.72]
[1734482373092,14.02774267,222.29,222.23,2.72]
[1734482373283,10.43859646,222.28,222.23,2.72]
[1734482373488,9.23672734,222.29,222.24,2.2491]
[1734482373690,2.2488,222.29,222.24,2.2491]
[1734482373892,10.69334834,222.32,222.24,2.2491]
[1734482374288,2.2491,222.26,222.23,2.72]
[1734482376190,10.69334834,222.29,222.2,2.72]
[1734482376493,10.69334834,222.29,222.14,3.0117]
[1734482376494,10.69334834,222.29,222.18,2.72]
[1734482376898,2.2493,222.23,222.19,2.2496]
[1734482377090,10.69334834,222.29,222.19,2.2496]
[1734482377697,10.69334834,222.29,222.18,2.72]
[1734482377994,2.2494,222.22,222.18,4.9698]
[1734482379195,10.69334834,222.29,222.18,2.72]
[1734482379395,10.69334834,222.32,222.18,13.41334834]
[1734482380104,2.2489,222.27,222.23,2.2492]
[1734482380398,10.69334834,222.29,222.15,10.69334834]
[1734482380598,2.2495,222.22,222.16,2.72]
[1734482380994,10.69334834,222.29,222.16,2.72]
[1734482381195,2.2494,222.23,222.16,2.72]
[1734482381497,10.69334834,222.29,222.17,2.2499]
[1734482381498,10.4275101,222.28,222.17,2.2499]
[1734482381699,2.2495,222.21,222.18,2.72]
[1734482381901,7.03259765,222.27,222.18,2.72]
[1734482382196,2.2496,222.2,222.18,2.72]
[1734482383201,2.2496,222.2,222.16,2.25]
[1734482383802,2.2496,222.2,222.17,2.2499]
[1734482384094,10.69334834,222.26,222.12,2.72]
[1734482384300,17.45569674,222.25,222.13,4.9702]
[1734482384508,10.42492488,222.25,222.13,2.72]
[1734482384701,2.2499,222.18,222.13,2.72]
[1734482385399,7.03252494,222.24,222.13,2.72]
[1734482385699,2.2495,222.21,222.13,2.72]
[1734482385894,7.03252494,222.24,222.13,2.72]
[1734482386401,2.2497,222.2,222.16,2.2499]
[1734482386793,2.2497,222.2,222.15,2.2501]
[1734482386993,2.2497,222.2,222.13,2.72]
[1734482387301,2.2498,222.19,222.13,2.72]
[1734482387699,2.2498,222.18,222.15,2.2501]
[1734482388098,10.43017269,222.25,222.13,2.72]
[1734482388398,2.25,222.17,222.14,2.2502]
[1734482389697,2.2501,222.15,222.06,10.69334834]
[1734482389897,10.69334834,222.2,222.06,10.69334834]
[1734482390092,10.69334834,222.2,222.07,8.0090379]
[1734482390405,2.2501,222.16,222.07,8.0090379]
[1734482391302,2.2501,222.15,222.11,2.2504]
[1734482392604,2.2501,222.15,222.07,8.0090379]
[1734482392605,2.2501,222.15,222.12,2.2504]
[1734482392800,10.42803206,222.19,222.1,2.72]
[1734482392801,2.2498,222.18,222.1,2.72]
[1734482393304,2.2498,222.18,222.11,2.72]
[1734482393505,17.47252043,222.21,222.11,2.72]
[1734482393706,7.03760334,222.2,222.16,2.2499]
[1734482394003,0.3447,222.25,222.16,2.2499]
[1734482394004,24.81382255,222.25,222.16,2.2499]
[1734482394204,2.2499,222.18,222.14,2.2502]
[1734482395004,2.2499,222.17,222.14,2.2502]
[1734482396308,10.69334834,222.23,222.14,2.2502]
[1734482396508,2.2498,222.18,222.14,2.2502]
[1734482397009,13.41334834,222.26,222.12,10.69334834]